bitfinex-derivatives/quotes_ETHF0:USTF0_20260303
["timestamp","ask_amount","ask_price","bid_price","bid_amount"]
[1772573076751,3.39068657,1968.7,1968.1,3.37855017]
[1772573077550,3.39068657,1968.6,1968.1,3.37855017]
[1772573077740,3.39623516,1968.6,1968.1,3.38386297]
[1772573081151,0.00554859,1968.6,1968.1,3.38386297]
[1772573081353,3.39623516,1968.6,1968.1,3.38386297]
[1772573088750,3.23184046,1968.9,1968.3,3.39627718]
[1772573089054,3.23184046,1968.8,1968.3,3.39627718]
[1772573089952,3.23184046,1968.4,1968.1,0.0053128]
[1772573090151,3.23184046,1968.4,1968.0,3.39627718]
[1772573091048,3.23184046,1968.4,1968.0,3.40214654]
[1772573094760,3.23184046,1968.4,1968.0,0.00586936]
[1772573094960,3.23184046,1968.4,1967.9,3.39627718]
[1772573095863,3.23184046,1968.4,1967.9,3.40086784]
[1772573101062,1.86557274,1968.8,1967.9,3.40086784]
[1772573101263,3.23184046,1968.7,1968.1,3.39627718]
[1772573101468,0.00643424,1968.8,1968.1,3.39627718]
[1772573101469,3.2382747,1968.8,1968.1,3.39627718]
[1772573101962,5.0974132,1968.8,1968.0,0.25408]
[1772573102267,3.23184046,1968.7,1968.0,3.65035718]
[1772573105566,3.23184046,1968.7,1967.9,3.40086784]
[1772573108872,3.23184046,1968.7,1967.6,0.25412]
[1772573108873,3.23184046,1968.4,1967.6,3.39627718]
[1772573109666,3.23184046,1968.4,1967.5,0.25413]
[1772573109871,3.23184046,1968.1,1967.5,3.40156558]
[1772573110968,3.23184046,1968.5,1967.7,3.39627718]
[1772573111170,3.23184046,1968.3,1967.7,3.39627718]
[1772573118373,3.23184046,1968.3,1967.0,7.73]
[1772573118374,3.25344774,1968.0,1967.0,3.09743498]
[1772573118572,3.25344774,1967.7,1967.0,3.09743498]
[1772573119267,3.25344774,1967.7,1967.0,3.10339422]
[1772573120474,3.25344774,1967.7,1967.0,3.05314902]
[1772573120776,3.25344774,1967.7,1967.0,0.00595924]
[1772573120981,3.25344774,1967.7,1967.0,3.05314902]
[1772573124477,3.25344774,1967.7,1967.0,0.00595924]
[1772573125083,3.25344774,1967.7,1967.0,3.05314902]
[1772573126381,3.25344774,1967.7,1966.4,3.04718978]
[1772573126584,3.04835112,1967.4,1966.4,3.04718978]
[1772573127383,3.05212547,1967.4,1966.4,3.05285201]
[1772573128089,3.05212547,1967.4,1966.2,3.04718978]
[1772573128090,3.04835112,1967.1,1966.2,3.04718978]
[1772573128282,3.04835112,1966.8,1965.8,0.25435]
[1772573128488,3.04835112,1966.8,1965.9,3.04718978]
[1772573129190,3.04835112,1966.8,1965.9,3.05193732]
[1772573132389,3.04835112,1966.7,1965.9,3.05193732]
[1772573132586,3.04835112,1966.7,1965.3,2.1135585]
[1772573132587,1.8591385,1966.3,1965.1,3.04718978]
[1772573132886,3.04835112,1966.2,1965.1,3.04718978]
[1772573133884,3.04835112,1966.2,1965.1,3.05194813]
[1772573134292,1.8591385,1966.0,1965.1,3.05194813]
[1772573134492,3.04835112,1965.9,1965.1,3.05194813]
[1772573134693,3.05460559,1966.0,1965.1,3.05194813]
[1772573136692,0.00625447,1966.0,1965.3,3.04718978]
[1772573137293,3.05460559,1966.0,1965.3,3.04718978]
[1772573137591,3.04835112,1965.7,1965.0,3.04718978]
[1772573137792,3.04835112,1965.3,1964.6,3.04718978]
[1772573137984,3.04835112,1965.3,1963.9,0.25461]
[1772573138185,3.04835112,1965.3,1964.0,3.04718978]
[1772573138695,3.04835112,1965.3,1964.0,3.05165444]
[1772573141094,3.04835112,1965.3,1964.2,3.04718978]
[1772573141590,3.04835112,1965.6,1964.4,3.04718978]
[1772573150698,3.04835112,1965.6,1964.6,3.0033555]
[1772573153993,3.01638962,1965.4,1964.6,3.0033555]
[1772573157004,3.01638962,1965.8,1964.6,3.2578655]
[1772573157707,3.01638962,1965.8,1964.7,3.0033555]
[1772573158206,3.01638962,1965.8,1964.9,3.0033555]
[1772573158899,3.01638962,1965.8,1965.1,3.0033555]
[1772573162799,0.00625447,1966.0,1964.6,10.72218094]
[1772573162800,3.01638962,1965.6,1964.7,3.0033555]
[1772573166511,3.01638962,1965.6,1964.0,19.7168389]
[1772573166512,3.01638962,1965.4,1964.2,3.2579255]
[1772573167410,3.01638962,1965.2,1964.2,3.2579255]
[1772573169809,3.27078962,1965.5,1964.2,3.2579255]
[1772573170008,3.01638962,1965.3,1964.2,3.2579255]
[1772573176422,3.01638962,1964.6,1964.0,0.00054386]
[1772573177519,3.02292969,1964.6,1963.9,3.0033555]
[1772573177721,3.02292969,1964.6,1963.9,2.6237032]
[1772573178821,3.02292969,1964.6,1963.9,2.62836616]
[1772573188126,3.02292969,1964.6,1963.9,2.91477001]
[1772573190129,3.02292969,1964.6,1963.9,0.00466296]
[1772573193429,2.91530272,1964.6,1963.9,3.16937001]
[1772573198233,2.91530272,1964.6,1963.9,2.91477001]
[1772573200141,2.91530272,1964.6,1963.5,2.91010705]
[1772573200941,3.16982272,1964.6,1963.5,2.91010705]
[1772573201338,2.91530272,1964.6,1963.7,2.91010705]
[1772573201839,2.91530272,1964.6,1963.5,2.91464016]
[1772573204447,2.90876265,1964.4,1963.5,2.91464016]
[1772573206446,2.90876265,1963.6,1962.7,10.289]
[1772573206654,2.90876265,1963.4,1962.4,2.91010705]
[1772573207450,2.90876265,1963.4,1962.4,2.91554795]
[1772573208248,5.52910703,1963.2,1962.4,0.0054409]
[1772573208449,2.73144609,1963.1,1962.4,0.0054409]
[1772573209842,2.73144609,1963.1,1962.4,2.87359427]
[1772573216154,2.73144609,1963.1,1962.4,0.0054409]
[1772573216356,2.73144609,1963.1,1962.4,2.87359427]
[1772573222359,2.73546404,1963.2,1962.6,2.86815337]
[1772573222559,0.00401795,1963.2,1962.6,2.86815337]
[1772573224363,2.73546404,1963.2,1962.6,2.86815337]
[1772573224861,2.99016404,1963.2,1962.4,0.0054409]
[1772573225157,2.99016404,1963.2,1961.5,19.401]
[1772573225158,2.73144609,1962.7,1961.7,2.86815337]
[1772573225354,2.73144609,1962.5,1961.5,2.86815337]
[1772573225962,2.73144609,1962.5,1961.5,2.87473158]
[1772573234274,2.73144609,1962.3,1961.5,0.00657821]
[1772573234569,0.2548,1962.4,1961.2,2.86815337]
[1772573234570,2.73144609,1962.1,1961.2,2.86815337]
[1772573234767,6.26838,1962.4,1960.8,2.86815337]
[1772573234768,2.73144609,1961.9,1960.8,2.86815337]
[1772573234965,2.73144609,1961.5,1960.7,2.86815337]
[1772573235766,2.7363567,1961.5,1960.7,2.87341485]
[1772573235965,0.00491061,1961.5,1960.7,2.87341485]
[1772573236162,2.73144609,1961.7,1960.9,2.86815337]
[1772573236362,2.73144609,1962.4,1960.9,2.86815337]
[1772573236562,2.73144609,1962.2,1960.9,2.86815337]
[1772573237270,2.73704668,1962.2,1960.9,2.86815337]
[1772573237467,2.99187668,1962.2,1960.9,2.86815337]
[1772573239276,2.79088979,1962.0,1960.9,2.86815337]
[1772573239467,2.79088979,1961.8,1960.9,2.86815337]
[1772573239776,2.79088979,1961.8,1960.7,2.72019329]
[1772573239971,0.25489,1961.7,1960.7,2.72019329]
[1772573240276,2.79088979,1961.4,1959.7,0.25514]
[1772573240571,2.79088979,1961.2,1959.9,2.71493181]
[1772573240772,2.79088979,1961.0,1959.9,2.71493181]
[1772573240974,2.79088979,1960.8,1959.9,2.71493181]
[1772573241267,2.79088979,1961.3,1959.9,2.71997602]
[1772573241463,4.17953914,1961.8,1960.1,2.71493181]
[1772573241464,2.79088979,1961.1,1960.1,2.71493181]
[1772573241867,3.04586979,1961.1,1959.9,2.71997602]
[1772573242070,2.79088979,1960.8,1959.9,0.00504421]
[1772573242273,2.79088979,1960.4,1959.3,2.71493181]
[1772573243262,2.79639746,1960.4,1959.3,2.7188061]
[1772573243875,2.79639746,1960.4,1959.3,0.00387429]
[1772573243876,2.79088979,1960.2,1959.3,0.00387429]
[1772573244373,2.79088979,1960.2,1959.3,2.7188061]
[1772573245469,0.00550767,1960.4,1959.3,2.9740061]
[1772573245969,0.25493,1961.5,1959.5,0.25518]
[1772573246169,2.79088979,1961.4,1959.6,2.71493181]
[1772573246371,2.79088979,1961.4,1959.8,2.71493181]
[1772573247073,2.79747859,1961.4,1960.0,2.71493181]
[1772573248372,2.79747859,1961.4,1959.6,2.71493181]
[1772573249877,2.79088979,1961.2,1959.6,2.71493181]
[1772573250080,2.79088979,1961.2,1959.7,2.97008181]
[1772573250480,2.79088979,1961.2,1960.0,2.71493181]
[1772573254982,2.79088979,1961.2,1960.1,0.2551]
[1772573255184,2.79088979,1961.2,1960.1,2.97003181]
[1772573255888,2.79088979,1961.2,1959.9,2.71493181]
[1772573256189,2.79088979,1961.1,1959.9,2.71493181]
[1772573256486,3.04586979,1961.1,1959.9,2.71493181]
[1772573259281,3.04586979,1961.1,1959.7,2.71493181]
[1772573259585,2.79088979,1960.9,1959.7,2.71493181]
[1772573260787,2.79088979,1960.8,1959.7,2.71493181]
[1772573261487,2.79088979,1960.8,1959.5,2.71493181]
[1772573261684,2.79088979,1960.6,1959.5,2.71493181]
[1772573263781,2.79088979,1961.1,1959.7,2.71493181]
[1772573263978,2.79088979,1961.1,1959.9,2.71493181]
[1772573267386,2.79088979,1961.1,1960.1,2.71493181]
[1772573267583,2.79088979,1961.3,1960.5,2.71493181]
[1772573267787,0.0065888,1961.4,1960.5,2.71493181]
[1772573267988,2.66315787,1961.4,1960.5,2.71493181]
[1772573268190,0.0065888,1961.4,1960.5,2.71493181]
[1772573268393,2.66315787,1961.4,1960.5,2.71493181]
[1772573268590,0.0065888,1961.4,1960.7,2.72445063]
[1772573268786,2.65656907,1961.6,1960.7,2.72445063]
[1772573269291,2.65656907,1962.1,1960.9,2.72445063]
[1772573269689,2.66305946,1962.1,1961.1,2.72445063]
[1772573278904,2.65656907,1962.4,1961.3,2.47203678]
[1772573279104,2.65656907,1962.4,1961.5,2.72445063]
[1772573280005,2.66280002,1962.4,1961.5,2.72445063]
[1772573280604,0.00623095,1962.4,1961.7,2.72445063]
[1772573280801,2.65656907,1962.6,1961.7,2.72445063]
[1772573281402,2.65656907,1962.6,1961.5,2.72445063]
[1772573281798,2.66265597,1962.6,1961.5,2.72445063]
[1772573283106,2.66265597,1962.6,1961.9,2.72445063]
[1772573285002,0.0060869,1962.6,1961.9,2.72445063]
[1772573285511,2.65656907,1963.3,1962.1,2.72445063]
[1772573286011,2.65656907,1963.1,1961.6,2.72445063]
[1772573286406,2.66131129,1963.1,1961.6,2.72445063]
[1772573287004,2.65656907,1962.9,1961.6,2.72445063]
[1772573288707,2.65656907,1962.9,1961.8,2.72445063]
[1772573290417,2.65656907,1962.9,1962.0,2.72445063]
[1772573291216,2.66131129,1963.1,1962.0,2.72445063]
[1772573293020,2.66131129,1963.1,1962.2,2.72445063]
[1772573293913,0.00474222,1963.1,1962.2,10.41245063]
[1772573294115,0.00474222,1963.1,1962.4,2.72445063]
[1772573294315,0.00474222,1963.1,1962.4,2.72954438]
[1772573294819,0.00474222,1963.1,1962.6,2.72445063]
[1772573295115,2.65656907,1963.3,1962.6,2.72445063]
[1772573296317,2.66224242,1963.3,1962.6,2.72445063]
[1772573296521,0.00567335,1963.3,1962.6,2.72445063]
[1772573296717,2.66224242,1963.3,1962.6,2.72445063]
[1772573300619,0.00567335,1963.3,1962.6,2.72445063]
[1772573300822,2.59808627,1963.3,1962.6,2.72445063]
[1772573302521,2.59241292,1963.5,1962.6,2.97920063]
[1772573303514,2.59844206,1963.5,1962.6,2.97920063]
[1772573304322,0.00602914,1963.5,1962.6,2.97920063]
[1772573304528,2.59844206,1963.5,1962.8,2.46703097]
[1772573312236,2.59241292,1963.7,1962.8,2.46703097]
[1772573313326,2.59902558,1963.7,1962.8,2.46703097]
[1772573326941,2.59902558,1963.7,1962.6,2.72178097]
[1772573327141,2.59902558,1963.7,1962.8,2.46703097]
[1772573337147,2.37933026,1963.9,1963.2,2.41047704]
[1772573337347,4.17972172,1964.4,1963.4,2.41047704]
[1772573337348,2.37933026,1964.4,1963.4,2.41047704]
[1772573337548,2.37933026,1964.2,1963.3,9.99447704]
[1772573337949,2.37933026,1964.2,1963.3,7.584]
[1772573338348,2.38573804,1964.2,1963.3,7.584]
[1772573338643,2.38573804,1964.2,1962.4,0.00509375]
[1772573338644,3.06195752,1963.4,1962.4,0.00509375]
[1772573338848,11.06991491,1963.3,1962.1,2.59290343]
[1772573339148,3.06195752,1963.4,1962.1,2.59290343]
[1772573339149,6.89019319,1963.2,1962.1,2.59290343]
[1772573339343,0.56777878,1963.0,1962.1,2.59290343]
[1772573339543,0.56777878,1962.9,1962.1,2.59290343]
[1772573339739,0.56777878,1962.9,1962.1,2.59859119]
[1772573341455,0.54177568,1962.7,1961.6,2.60411449]
[1772573341655,0.45061334,1962.6,1961.6,2.60411449]
[1772573342352,0.44898649,1962.4,1961.6,2.60874166]
[1772573344354,0.463187,1962.2,1961.0,2.63819798]
[1772573344556,13.17363468,1962.4,1961.0,2.63819798]
[1772573344557,0.463187,1962.0,1961.0,2.63819798]
[1772573345455,0.463187,1962.0,1961.0,2.64266949]
[1772573345954,0.47826464,1961.8,1961.0,0.00447151]
[1772573346259,0.47826464,1961.8,1961.0,2.63654568]
[1772573347053,0.25484,1961.9,1961.0,2.63654568]
[1772573347259,0.47601803,1962.3,1961.0,2.63654568]
[1772573349758,0.47601803,1962.3,1961.1,2.63480311]
[1772573353461,2.80932744,1962.6,1961.1,2.63480311]
[1772573353462,0.50073183,1962.1,1961.1,2.63480311]
[1772573359962,0.52268674,1962.5,1961.1,2.63480311]
[1772573361860,0.25478,1962.4,1961.1,2.63480311]
[1772573362061,0.54316095,1962.3,1961.1,2.63480311]
[1772573365162,0.54316095,1962.3,1961.0,7.59347151]
[1772573365163,0.54316095,1962.3,1961.3,2.82040757]
[1772573365364,0.00458354,1962.6,1961.5,2.82040757]
[1772573365560,0.00458354,1962.6,1961.7,2.82040757]
[1772573367567,0.54735634,1963.0,1961.7,3.07526757]
[1772573368161,7.45126339,1963.0,1961.7,3.07526757]
[1772573368368,0.589541,1962.9,1961.7,3.07526757]
[1772573368563,0.59450372,1962.9,1961.7,3.07526757]
[1772573380176,0.00496272,1962.9,1962.1,2.82040757]
[1772573380373,0.00496272,1962.9,1962.3,2.82040757]
[1772573380572,0.56871002,1962.9,1962.3,2.82040757]
[1772573381675,0.00496272,1962.9,1962.3,2.82040757]
[1772573385081,0.55802782,1962.9,1962.3,2.82040757]
[1772573387081,0.51406375,1963.5,1962.5,2.82040757]
[1772573387285,0.51406375,1963.4,1962.7,2.82040757]
[1772573387577,0.51071604,1963.6,1962.7,2.82040757]
[1772573388186,0.51532912,1963.6,1962.7,2.82512345]
[1772573389389,0.00461308,1963.6,1962.7,2.82512345]
[1772573390689,0.51844134,1963.6,1962.7,2.82512345]
[1772573400492,0.46971456,1964.0,1963.1,2.6066261]
[1772573400788,0.46971456,1964.0,1963.3,2.6066261]
[1772573400994,0.82420589,1963.6,1962.9,2.6066261]
[1772573401195,0.82420589,1963.6,1962.8,10.1456261]
[1772573401494,0.82420589,1963.6,1962.7,0.00471588]
[1772573401495,0.82130455,1963.3,1962.7,0.00471588]
[1772573401791,0.82130455,1963.3,1962.5,2.6066261]
[1772573402593,0.82130455,1963.3,1962.3,2.6066261]
[1772573402783,0.82130455,1963.3,1962.5,0.00504533]
[1772573403293,0.82130455,1963.3,1962.5,2.61167143]
[1772573403593,0.82130455,1963.3,1962.5,0.00504533]
[1772573403796,0.00399119,1963.6,1962.3,2.6066261]
[1772573403797,0.67390118,1963.0,1962.3,2.6066261]
[1772573404483,0.67390118,1963.0,1962.2,2.6066261]
[1772573404688,0.67390118,1963.0,1961.9,2.6066261]
[1772573404888,0.67390118,1963.0,1961.9,2.61109324]
[1772573406790,0.65448609,1962.7,1961.9,2.61109324]
[1772573407490,0.65107984,1962.5,1961.9,0.00446714]
[1772573407896,0.64642738,1962.7,1961.6,2.8615061]
[1772573408095,0.64642738,1963.0,1961.6,2.8615061]
[1772573408496,0.64642738,1963.0,1962.1,2.6066261]
[1772573408796,0.64642738,1963.0,1962.2,2.6066261]
[1772573408995,0.25862119,1963.6,1962.2,2.6066261]
[1772573409195,0.63655356,1963.5,1962.2,2.6066261]
[1772573409491,0.63343382,1963.3,1962.2,2.6066261]
[1772573409795,0.6372586,1963.6,1962.4,2.6066261]
[1772573412802,0.61851996,1963.3,1962.4,2.6066261]
[1772573416200,0.59822241,1963.0,1962.2,2.6066261]
[1772573417499,0.59213918,1962.8,1962.1,0.00614069]
[1772573417705,0.59213918,1962.8,1962.1,2.61276679]
[1772573418003,0.59020278,1962.8,1961.9,2.6066261]
[1772573418394,0.59264024,1963.0,1961.9,2.6066261]
[1772573418798,0.59264024,1963.0,1961.9,2.61142536]
[1772573419505,0.25471,1962.9,1961.9,2.61142536]
[1772573419704,0.5181851,1962.8,1961.9,2.61142536]
[1772573428306,0.77382576,1962.9,1961.9,2.61142536]
[1772573428609,0.51545568,1962.8,1961.9,2.61142536]
[1772573428811,0.76943892,1962.9,1961.9,2.61142536]
[1772573430307,0.51090766,1963.0,1961.9,2.61142536]
[1772573430508,7.24689875,1963.3,1962.1,2.66274539]
[1772573430711,0.50723875,1963.2,1962.1,2.66274539]
[1772573433110,0.25469,1963.1,1962.1,2.66274539]
[1772573433312,0.50944158,1963.0,1962.1,2.66274539]
[1772573434212,0.25469,1963.1,1962.1,2.66274539]
[1772573434613,0.75662851,1963.1,1962.1,2.66274539]
[1772573434808,0.50193851,1963.0,1962.1,2.66274539]
[1772573437615,0.50298739,1963.3,1962.1,2.66274539]
[1772573440510,0.47374415,1963.2,1962.1,2.66274539]
[1772573447416,0.46065417,1963.1,1962.1,2.66274539]
[1772573447622,0.46065417,1963.0,1962.1,2.66274539]
[1772573454726,4.17972172,1963.4,1962.3,2.71379489]
[1772573455022,0.71045355,1963.6,1962.5,2.71379489]
[1772573455023,0.45582355,1963.6,1962.5,2.71379489]
[1772573455326,0.45582355,1963.6,1962.7,2.71379489]
[1772573455522,0.00399119,1963.6,1962.7,2.71379489]
[1772573455824,4.43429172,1964.0,1962.9,2.71379489]
[1772573455825,2.55785026,1964.0,1962.9,2.71379489]
[1772573456624,2.56292362,1964.0,1962.9,2.71379489]
[1772573463329,0.00507336,1964.0,1963.3,2.71379489]
[1772573463531,0.00507336,1964.0,1963.3,2.71828843]
[1772573463823,2.56292362,1964.0,1963.3,0.00449354]
[1772573464023,2.56292362,1964.0,1963.3,2.71828843]
[1772573464226,0.00507336,1964.0,1963.3,2.71828843]
[1772573464529,2.55785026,1964.5,1963.3,2.71828843]
[1772573465123,2.55785026,1964.3,1963.3,2.71828843]
[1772573465323,2.56330242,1964.3,1963.3,2.71828843]
[1772573471035,2.55785026,1963.9,1962.7,2.71379489]
[1772573472134,2.55785026,1963.7,1962.7,2.71942386]
[1772573475535,2.55785026,1963.5,1962.7,2.71942386]
[1772573477933,2.55785026,1963.5,1962.7,0.00562897]
[1772573478135,2.64750791,1963.3,1962.7,0.00562897]
[1772573478741,2.64750791,1963.3,1962.5,2.65103688]
[1772573479038,2.60975961,1963.1,1962.0,2.65103688]
[1772573479834,2.60975961,1963.1,1962.0,2.65698409]
[1772573486139,2.60975961,1963.6,1962.2,2.65103688]
[1772573486943,2.60975961,1963.6,1962.4,2.65103688]
[1772573489350,2.60975961,1963.6,1962.6,2.65103688]
[1772573489846,2.60975961,1963.6,1962.7,2.65103688]
[1772573490042,2.60975961,1963.6,1962.5,0.25476]
[1772573490043,2.86438961,1963.6,1962.5,2.65103688]
[1772573491249,0.25457,1964.0,1962.7,2.65103688]
[1772573491558,2.60975961,1963.9,1962.8,2.65103688]
[1772573492353,2.60975961,1964.2,1963.2,2.65103688]
[1772573498862,2.61521177,1964.3,1963.4,2.65103688]
[1772573499160,2.61521177,1964.3,1963.4,2.65599726]
[1772573500162,0.00545216,1964.3,1963.4,2.65599726]
[1772573500662,2.61521177,1964.3,1963.4,2.65599726]
[1772573501862,2.86975177,1964.3,1963.4,2.65599726]
[1772573502161,2.86975177,1964.3,1963.4,0.00496038]
[1772573504159,2.60975961,1963.9,1962.9,2.65103688]
[1772573504763,2.60975961,1963.7,1962.9,2.65103688]
[1772573505162,2.60975961,1963.7,1962.9,2.65647567]
[1772573509867,10.61899216,1964.3,1962.9,2.65647567]
[1772573510067,2.4978677,1964.1,1962.9,2.65647567]
[1772573515775,2.75785986,1964.3,1963.1,2.51318023]
[1772573516175,2.4978677,1964.1,1963.1,2.51318023]
[1772573518976,2.50331986,1964.3,1963.3,2.51318023]
[1772573520774,2.4978677,1964.1,1963.3,2.51318023]
[1772573520976,2.4978677,1963.9,1963.2,2.51318023]
[1772573521179,2.4978677,1963.9,1963.0,2.51318023]
[1772573525279,2.4978677,1964.2,1963.0,2.51318023]
[1772573526484,2.4978677,1964.0,1963.0,2.51318023]
[1772573532580,2.4978677,1963.8,1963.0,2.51318023]
[1772573534986,2.4978677,1963.8,1963.2,2.51318023]
[1772573536987,2.4978677,1964.0,1963.2,2.51318023]
[1772573537288,2.4978677,1964.1,1963.6,2.51318023]
[1772573538185,2.54879833,1964.2,1963.6,2.51318023]
[1772573538592,2.55425049,1964.3,1963.6,2.51318023]
[1772573540590,2.62890287,1964.3,1963.7,2.50307675]
[1772573543095,2.62890287,1964.3,1963.3,9.38164999]
[1772573543096,2.62345071,1964.1,1963.4,2.50307675]
[1772573546598,2.62890287,1964.3,1963.6,2.50307675]
[1772573551702,2.62345071,1963.9,1963.4,2.50307675]
[1772573553795,2.62345071,1963.9,1963.3,9.76207675]
[1772573554000,2.62345071,1963.5,1963.0,2.50307675]
[1772573556005,2.62345071,1963.5,1962.9,2.50851554]
[1772573556201,1.86799999,1963.4,1962.9,2.50851554]
[1772573556400,2.62345071,1963.3,1962.7,2.50307675]
[1772573556605,2.62345071,1963.3,1962.6,2.50307675]
[1772573557506,2.62345071,1963.3,1962.7,2.50307675]
[1772573558702,4.19150709,1963.8,1962.9,2.50307675]
[1772573558906,2.62345071,1964.1,1963.1,2.50307675]
[1772573559109,2.62890287,1964.3,1963.3,2.50307675]
[1772573561907,2.62947336,1964.9,1963.5,2.50307675]
[1772573562709,2.62947336,1964.9,1963.7,2.50307675]
[1772573563311,0.00602265,1964.9,1963.7,2.50307675]
[1772573563906,2.62947336,1964.9,1963.7,2.50307675]
[1772573566809,0.00602265,1964.9,1963.9,2.50307675]
[1772573567010,0.00602265,1964.9,1964.1,2.50307675]
[1772573567214,0.00602265,1964.9,1964.1,2.50671641]
[1772573568709,2.32236785,1964.9,1964.1,2.50671641]
[1772573569106,0.00602265,1964.9,1964.1,2.50671641]
[1772573569309,2.3163452,1965.4,1964.3,2.45376627]
[1772573570309,2.32002554,1965.4,1964.3,2.45376627]
[1772573571009,2.3163452,1965.2,1964.1,2.45740593]
[1772573572010,2.5707552,1965.2,1964.1,2.45740593]
[1772573572210,2.3163452,1965.2,1964.1,2.45740593]
[1772573573918,3.05835504,1964.4,1963.0,2.45376627]
[1772573574919,3.05835504,1964.4,1963.0,2.46022169]
[1772573575419,2.3163452,1964.3,1963.0,2.46022169]
[1772573579524,2.3163452,1964.3,1963.2,2.45376627]
[1772573584632,2.3163452,1964.8,1963.4,2.45376627]
[1772573587834,2.3163452,1964.6,1963.4,2.45376627]
[1772573593039,0.2545,1964.5,1963.4,2.45376627]
[1772573593237,2.3163452,1964.4,1963.4,2.45376627]
[1772573594038,2.3163452,1964.4,1963.6,2.45376627]
[1772573594236,2.3163452,1964.8,1963.6,2.45376627]
[1772573594534,2.3163452,1965.0,1963.8,2.45376627]
[1772573594738,2.3163452,1965.0,1964.0,2.45376627]
[1772573595338,2.3163452,1965.3,1964.0,2.45376627]
[1772573596038,2.3163452,1965.3,1964.2,2.45376627]
[1772573596641,2.3163452,1965.1,1963.8,2.45376627]
[1772573597035,2.3163452,1965.1,1964.0,2.45376627]
[1772573597741,2.3163452,1965.1,1964.2,2.45376627]
[1772573607351,2.70890664,1965.3,1964.2,2.45376627]
[1772573608050,2.70892664,1965.1,1963.7,2.39153629]
[1772573612555,2.45449664,1965.1,1963.9,2.39153629]
[1772573613652,2.45449664,1965.1,1964.1,2.39153629]
[1772573615352,2.45449664,1965.2,1964.1,2.39153629]
[1772573615957,2.45449664,1965.2,1964.3,2.39153629]
[1772573617056,2.45817698,1965.4,1964.5,2.39153629]
[1772573617253,2.45449664,1965.9,1964.9,2.39153629]
[1772573617750,2.45449664,1966.4,1964.9,2.39153629]
[1772573617949,2.45449664,1966.2,1964.9,2.39153629]
[1772573618155,2.45823851,1966.2,1964.9,2.39153629]
[1772573618955,2.45823851,1966.2,1965.1,2.39153629]
[1772573619354,2.45823851,1966.2,1965.2,2.39153629]
[1772573624764,2.45449664,1966.0,1965.1,2.39153629]
[1772573625858,0.00374187,1966.2,1964.9,2.39153629]
[1772573625859,2.45449664,1965.8,1964.9,2.39153629]
[1772573629762,2.46928815,1965.6,1964.5,2.35680534]
[1772573630962,2.46928815,1965.4,1964.5,2.35680534]
[1772573632864,2.46928815,1965.4,1963.8,2.35105525]
[1772573632865,2.46928815,1964.8,1963.8,2.35105525]
[1772573633963,2.47577785,1964.8,1963.8,2.35631569]
[1772573635468,2.46928815,1964.6,1963.8,2.35631569]
[1772573636261,2.47577785,1964.8,1963.8,2.35631569]
[1772573638361,0.0064897,1964.8,1964.0,2.35105525]
[1772573638564,2.46928815,1965.2,1964.0,2.35105525]
[1772573639471,2.47295547,1965.2,1964.0,2.35105525]
[1772573639675,2.72737547,1965.2,1964.0,2.35105525]
[1772573642467,2.46928815,1965.0,1964.0,2.35105525]
[1772573642765,0.2545,1964.5,1963.8,0.00526044]
[1772573642966,2.46928815,1964.4,1963.8,2.35631569]
[1772573643566,2.46928815,1964.7,1963.8,2.35631569]
[1772573651181,2.46928815,1965.1,1963.8,7.33685044]
[1772573651379,2.46928815,1965.1,1964.1,2.35105525]
[1772573653484,2.46928815,1964.9,1963.9,2.35105525]
[1772573653880,2.79967778,1965.1,1963.9,2.35105525]
[1772573653881,2.46928815,1964.7,1963.9,2.35105525]
[1772573654186,2.46928815,1964.7,1963.8,2.35631569]
[1772573655186,2.46928815,1964.5,1963.8,2.35631569]
[1772573655880,2.46928815,1965.0,1963.8,2.35631569]
[1772573656083,2.46928815,1964.9,1963.8,2.35631569]
[1772573656585,2.46928815,1964.9,1963.8,2.61089569]
[1772573659387,2.50503434,1964.7,1963.8,2.35631569]
[1772573661186,2.50503434,1964.5,1963.8,2.35631569]
[1772573665891,2.50503434,1964.8,1963.8,2.35631569]
[1772573669099,2.50503434,1964.8,1964.0,2.38632486]
[1772573669795,2.50503434,1965.1,1964.0,2.38632486]
[1772573671001,2.50503434,1965.1,1964.2,2.38632486]
[1772573671597,2.75946434,1965.1,1964.2,2.38632486]
[1772573671800,2.50503434,1964.9,1963.9,2.38632486]
[1772573673099,2.50503434,1964.7,1963.8,0.00526044]
[1772573673397,2.50503434,1964.7,1963.2,2.79967778]
[1772573673398,0.00523006,1963.8,1962.6,2.51159333]
[1772573673599,0.00565979,1963.7,1962.6,2.51159333]
[1772573674000,0.0056517,1963.4,1962.1,2.51159738]
[1772573674298,0.0056517,1963.3,1962.1,2.51690542]
[1772573678905,0.1092536,1963.4,1962.1,2.51690542]
[1772573679307,0.1092536,1963.4,1962.3,2.52644947]
[1772573679808,0.10126889,1963.2,1962.3,2.52644947]
[1772573681409,0.09523644,1963.4,1962.3,2.52644947]
[1772573684609,0.0038921,1963.4,1962.3,2.52644947]
[1772573685111,0.10228846,1963.4,1962.3,2.52644947]
[1772573687911,0.0038921,1963.4,1962.3,2.52644947]
[1772573689010,0.0038921,1963.4,1962.4,0.25478]
[1772573689211,0.08745786,1963.4,1962.5,2.51657776]
[1772573690911,0.07550794,1963.0,1962.2,2.51663676]
[1772573691410,0.07550794,1962.9,1962.2,2.51663676]
[1772573692512,0.07550794,1962.9,1962.1,0.00530804]
[1772573692809,0.06772731,1962.7,1962.1,0.00530804]
[1772573693201,0.07578593,1962.5,1961.7,2.50991255]
[1772573694302,0.07578593,1962.5,1961.7,2.51618429]
[1772573694906,6.831,1963.1,1961.7,2.51618429]
[1772573694907,0.03931414,1962.9,1961.7,2.51618429]
[1772573702413,0.00393938,1962.6,1961.7,2.51618429]
[1772573705514,6.485,1963.1,1961.9,2.53869081]
[1772573705915,6.809,1963.2,1961.9,2.53869081]
[1772573706125,6.56921465,1963.1,1961.9,2.53869081]
[1772573708125,6.809,1963.2,1961.9,2.53869081]
[1772573708718,0.25467,1963.3,1961.9,2.53869081]
[1772573709025,0.3366522,1963.3,1962.1,2.53470887]
[1772573709520,13.379613,1963.4,1962.3,2.47898527]
[1772573709521,0.0038921,1963.4,1962.3,2.47898527]
[1772573710722,0.34057946,1963.8,1962.5,2.47898481]
[1772573711721,0.34651413,1963.8,1962.5,2.47898481]
[1772573712415,0.00593467,1963.8,1962.7,2.47430947]
[1772573712817,0.09631891,1963.6,1962.7,2.47430947]
[1772573713818,0.09662684,1963.4,1962.7,2.47430947]
[1772573714729,0.09688756,1963.4,1962.7,2.47430947]
[1772573716023,6.66846381,1963.6,1962.7,2.47430947]
[1772573716224,0.10315343,1963.6,1962.7,2.47430947]
[1772573717430,6.56405834,1963.7,1962.7,2.47430947]
[1772573717636,6.66661269,1963.7,1962.7,2.47430947]
[1772573718337,0.10289352,1963.6,1962.7,2.47430947]
[1772573720443,6.80693467,1963.8,1962.7,2.47430947]
[1772573720645,0.00593467,1963.8,1962.7,2.47430947]
[1772573720846,0.00593467,1963.8,1962.7,2.72903947]
[1772573721040,4.2986841,1964.4,1963.0,2.48440205]
[1772573721240,6.57218654,1964.3,1963.0,2.48440205]